bitfinex-derivatives/quotes_SOLF0:USTF0_20260310
["timestamp","ask_amount","ask_price","bid_price","bid_amount"]
[1773156842882,4.00690652,88.079,87.978,2.23717374]
[1773156843878,8.81719675,88.13,87.978,2.23717374]
[1773156843879,4.00690652,88.059,87.978,2.23717374]
[1773156844479,4.00690652,88.039,87.951,2.32999731]
[1773156844982,4.00690652,88.039,87.974,2.32999731]
[1773156845186,4.00690652,88.079,87.991,2.32999731]
[1773156845477,4.00690652,88.079,88.01,10.224]
[1773156845679,4.00690652,88.079,87.991,2.32999731]
[1773156845982,4.00690652,88.079,88.001,2.32999731]
[1773156846286,4.00690652,88.079,88.002,10.225]
[1773156846472,4.00690652,88.079,87.971,2.17213771]
[1773156847284,4.00690652,88.079,87.97,8.81719675]
[1773156847285,4.00690652,88.079,87.991,2.17213771]
[1773156848373,4.00690652,88.079,88.033,10.221]
[1773156848779,4.00690652,88.079,87.991,2.17213771]
[1773156849386,4.00690652,88.079,88.028,10.222]
[1773156850380,4.00690652,88.059,87.957,2.2049636]
[1773156850583,10.49317721,88.16,87.918,159.214]
[1773156850584,4.00690652,88.039,87.937,2.2049636]
[1773156850884,8.81719675,88.08,87.915,2.2049636]
[1773156850885,4.00690652,87.999,87.915,2.2049636]
[1773156851293,4.00690652,87.999,87.941,10.232]
[1773156851680,4.00690652,87.989,87.891,2.2049636]
[1773156852079,4.00690652,87.969,87.891,2.2049636]
[1773156852883,4.00690652,87.969,87.925,10.234]
[1773156855390,8.86386707,87.99,87.89,8.86386707]
[1773156855391,4.00690652,87.989,87.937,10.233]
[1773156855889,4.00690652,87.989,87.911,2.31820758]
[1773156856087,4.00690652,88.009,87.911,2.31820758]
[1773156856789,4.00690652,87.99,87.911,2.31820758]
[1773156857294,4.00690652,87.99,87.96,10.23]
[1773156857496,8.86386707,88.01,87.93,2.31816468]
[1773156857694,4.00690652,88.009,87.93,2.31816468]
[1773156858996,4.00690652,88.009,87.963,10.229]
[1773156859198,4.00690652,88.009,87.902,20.474]
[1773156859199,4.00690652,88.009,87.909,2.30316986]
[1773156859400,4.00690652,88.009,87.94,10.232]
[1773156860499,3.98597621,87.989,87.93,10.233]
[1773156860998,3.98597621,87.989,87.909,2.30316986]
[1773156861200,3.98597621,87.989,87.949,10.231]
[1773156861903,3.98597621,88.009,87.928,2.30297108]
[1773156863107,3.98597621,88.009,87.961,10.23]
[1773156863495,3.98597621,88.009,87.931,2.30458192]
[1773156864204,8.86386707,88.03,87.931,2.30458192]
[1773156864403,3.98597621,88.029,87.931,2.30458192]
[1773156864805,3.98597621,88.029,87.976,10.228]
[1773156866007,3.98597621,87.989,87.91,2.39638746]
[1773156866402,3.98597621,87.989,87.889,2.39638746]
[1773156866607,3.98597621,87.969,87.889,2.39638746]
[1773156867608,3.98597621,87.969,87.921,10.234]
[1773156868205,3.98597621,87.969,87.929,10.233]
[1773156868509,3.98597621,87.969,87.862,159.315]
[1773156868510,3.98597621,87.989,87.901,2.37467205]
[1773156869307,3.98597621,87.989,87.943,10.232]
[1773156869803,3.98597621,87.989,87.901,2.37467205]
[1773156870609,3.98597621,87.989,87.906,2.39407106]
[1773156871211,3.98597621,87.989,87.946,10.231]
[1773156871411,3.98597621,87.989,87.906,2.39407106]
[1773156874215,3.98597621,87.979,87.882,2.38956591]
[1773156874515,3.98597621,87.979,87.889,2.38956591]
[1773156874715,3.98597621,87.977,87.916,10.235]
[1773156875013,3.98597621,87.959,87.87,2.38956591]
[1773156875611,3.98597621,87.959,87.843,318.699]
[1773156875612,8.86386707,87.97,87.881,2.38956591]
[1773156875810,3.98597621,87.979,87.936,10.233]
[1773156876007,3.98597621,87.979,87.901,2.38956591]
[1773156877214,3.98597621,87.979,87.904,20.473]
[1773156877416,3.98597621,87.979,87.901,2.38956591]
[1773156878917,3.98597621,87.979,87.934,10.233]
[1773156879211,3.98597621,87.979,87.901,2.38956591]
[1773156880314,3.98597621,87.979,87.89,8.86386707]
[1773156880618,3.98597621,87.979,87.89,11.32493093]
[1773156881313,3.98597621,87.969,87.881,20.479]
[1773156881614,3.98597621,87.969,87.871,2.46106386]
[1773156882618,3.98597621,87.969,87.936,10.233]
[1773156883518,3.98597621,87.969,87.925,10.234]
[1773156883914,3.98597621,87.969,87.874,2.46230873]
[1773156884127,3.98597621,87.949,87.874,2.46230873]
[1773156884419,3.98597621,87.949,87.852,2.46238702]
[1773156884612,8.86386707,87.95,87.832,2.46238702]
[1773156884613,3.98597621,87.909,87.832,2.46238702]
[1773156884819,3.98597621,87.889,87.811,2.46238702]
[1773156885208,3.98597621,87.889,87.831,10.245]
[1773156885412,3.98597621,87.889,87.811,2.46238702]
[1773156885813,8.86386707,87.89,87.781,2.46238702]
[1773156885814,3.98597621,87.869,87.781,2.46238702]
[1773156886010,3.98597621,87.869,87.785,2.47672916]
[1773156886613,3.98597621,87.869,87.728,159.56]
[1773156886918,3.98597621,87.869,87.701,7.42841759]
[1773156886919,8.86386707,87.84,87.701,7.42841759]
[1773156887120,8.86386707,87.84,87.651,159.698]
[1773156887121,8.86386707,87.76,87.679,7.42841759]
[1773156887420,8.86386707,87.75,87.671,10.263]
[1773156887721,8.86386707,87.78,87.661,7.42841759]
[1773156887919,8.86386707,87.76,87.681,7.42841759]
[1773156888624,8.86386707,87.78,87.681,7.42841759]
[1773156889025,8.86386707,87.78,87.69,8.86386707]
[1773156889226,8.86386707,87.78,87.682,7.46655712]
[1773156889818,8.86386707,87.76,87.682,7.46655712]
[1773156890014,8.86386707,87.76,87.66,7.5294275]
[1773156890325,8.86386707,87.76,87.541,20.55465394]
[1773156890326,8.86386707,87.7,87.638,7.5294275]
[1773156890520,8.86386707,87.73,87.643,7.5294275]
[1773156890824,8.86386707,87.71,87.611,7.5294275]
[1773156891024,8.86386707,87.72,87.611,7.5294275]
[1773156891324,8.86386707,87.72,87.637,7.5294275]
[1773156892324,8.86386707,87.7,87.637,7.5294275]
[1773156892531,8.86386707,87.7,87.6,8.86386707]
[1773156892532,8.86386707,87.7,87.614,7.51043904]
[1773156893023,8.86386707,87.7,87.631,10.268]
[1773156894121,20.489,87.836,87.614,17.78043904]
[1773156894122,8.86386707,87.68,87.614,17.78043904]
[1773156894814,8.86386707,87.68,87.614,7.51043904]
[1773156895018,8.86386707,87.68,87.58,8.86386707]
[1773156895019,8.86386707,87.66,87.591,7.48578406]
[1773156895621,8.86386707,87.66,87.593,7.48578406]
[1773156895826,8.86386707,87.68,87.593,7.48578406]
[1773156896124,8.86386707,87.68,87.573,159.841]
[1773156896125,8.86386707,87.7,87.625,7.47907945]
[1773156896316,10.256,87.736,87.625,7.47907945]
[1773156896521,8.86386707,87.7,87.625,7.47907945]
[1773156896824,8.86386707,87.74,87.641,7.47907945]
[1773156897527,8.86386707,87.72,87.657,10.265]
[1773156897924,8.86386707,87.74,87.657,17.62324264]
[1773156899322,8.86386707,87.74,87.609,159.776]
[1773156899323,8.86386707,87.74,87.668,10.264]
[1773156899521,8.86386707,87.74,87.668,17.62224264]
[1773156899721,8.86386707,87.74,87.669,7.35824264]
[1773156899926,8.86386707,87.84,87.676,7.35824264]
[1773156900227,8.86386707,87.78,87.676,7.35824264]
[1773156900429,8.86386707,87.76,87.676,7.35824264]
[1773156900822,8.86386707,87.76,87.685,10.262]
[1773156901017,8.86386707,87.76,87.676,7.35824264]
[1773156901225,8.86386707,87.74,87.655,7.35637263]
[1773156901522,8.86386707,87.75,87.67,7.35637263]
[1773156902328,8.86386707,87.77,87.698,10.26]
[1773156902828,8.86386707,87.77,87.692,7.29675573]
[1773156904025,10.252,87.769,87.692,7.29675573]
[1773156904226,10.252,87.769,87.68,10.262]
[1773156904832,10.252,87.769,87.68,17.54965524]
[1773156905026,10.252,87.769,87.692,10.261]
[1773156905628,8.86386707,87.77,87.705,10.26]
[1773156906434,8.86386707,87.75,87.666,10.264]
[1773156906740,8.86386707,87.75,87.656,7.28701908]
[1773156907232,8.86386707,87.77,87.689,7.28701908]
[1773156908940,8.86386707,87.77,87.711,10.259]
[1773156909731,8.86386707,87.77,87.689,7.28701908]
[1773156909732,8.86386707,87.8,87.734,10.256]
[1773156909935,8.86386707,87.8,87.73,7.28768399]
[1773156910135,202.64695321,87.869,87.73,7.28768399]
[1773156910136,8.86386707,87.82,87.73,7.28768399]
[1773156910444,8.86386707,87.84,87.75,7.27761823]
[1773156911441,8.86386707,87.82,87.75,7.27761823]
[1773156912931,8.86386707,87.82,87.76,10.253]
[1773156913133,182.28,87.839,87.75,7.27761823]
[1773156913741,182.28,87.839,87.781,10.251]
[1773156913940,182.28,87.839,87.771,7.18774242]
[1773156914344,182.28,87.839,87.769,10.252]
[1773156914641,182.28,87.839,87.749,7.1803316]
[1773156915847,10.244,87.837,87.757,10.253]
[1773156916247,10.244,87.837,87.749,7.1803316]
[1773156916748,8.89560669,87.83,87.758,7.16157903]
[1773156917348,182.28,87.839,87.758,7.16157903]
[1773156918346,182.28,87.839,87.789,10.25]
[1773156918541,182.28,87.839,87.758,7.16157903]
[1773156919649,8.89560669,87.85,87.799,10.249]
[1773156919847,191.29709718,87.869,87.78,7.16332477]
[1773156920044,10.241,87.868,87.799,10.249]
[1773156920638,10.241,87.868,87.808,10.248]
[1773156920844,191.29709718,87.869,87.8,7.16247117]
[1773156921044,191.29709718,87.869,87.771,7.16247117]
[1773156921247,10.241,87.868,87.798,10.249]
[1773156922442,8.89560669,87.85,87.786,10.25]
[1773156922642,8.89560669,87.85,87.771,7.16247117]
[1773156923450,10.244,87.838,87.776,10.251]
[1773156923648,8.89560669,87.85,87.776,10.251]
[1773156923849,8.89560669,87.85,87.785,10.25]
[1773156924048,8.89560669,87.85,87.771,7.16247117]
[1773156924751,10.244,87.841,87.776,10.251]
[1773156925250,8.89560669,87.85,87.777,7.1408113]
[1773156926251,8.89560669,87.85,87.794,10.249]
[1773156928955,8.89560669,87.85,87.804,7.14398003]
[1773156929458,8.99942916,87.868,87.804,7.14398003]
[1773156929655,8.89560669,87.88,87.804,7.14398003]
[1773156929860,8.99942916,87.879,87.804,7.14398003]
[1773156930056,8.99942916,87.878,87.804,7.14398003]
[1773156930256,8.89560669,87.88,87.804,7.14398003]
[1773156930257,8.99942916,87.877,87.832,10.245]
[1773156930560,8.99942916,87.879,87.804,7.14398003]
[1773156930758,8.99942916,87.878,87.833,10.245]
[1773156930955,8.99942916,87.877,87.833,10.245]
[1773156931154,8.99942916,87.876,87.833,10.245]
[1773156931360,8.99942916,87.875,87.833,10.245]
[1773156931563,8.99942916,87.879,87.825,10.246]
[1773156931765,8.99942916,87.878,87.804,7.14398003]
[1773156931963,8.99942916,87.877,87.83,10.245]
[1773156932159,8.99942916,87.879,87.822,7.10726843]
[1773156932358,20.464,87.945,87.822,7.10726843]
[1773156932359,8.89560669,87.9,87.822,7.10726843]
[1773156932558,10.238,87.888,87.837,10.244]
[1773156932764,8.99942916,87.887,87.822,7.10726843]
[1773156932965,8.99942916,87.886,87.822,7.10726843]
[1773156933168,10.238,87.888,87.822,7.10726843]
[1773156933365,10.238,87.888,87.829,10.245]
[1773156933572,11.52779897,87.909,87.79,8.89560669]
[1773156933573,8.89560669,87.88,87.802,7.10726843]
[1773156933769,8.99942916,87.879,87.802,7.10726843]
[1773156933966,8.99942916,87.878,87.802,7.10726843]
[1773156934271,8.89560669,87.88,87.802,7.10726843]
[1773156934762,10.24,87.87,87.802,7.10726843]
[1773156935359,8.89560669,87.88,87.802,7.10726843]
[1773156935562,9.02222588,87.893,87.802,7.10726843]
[1773156935761,9.02222588,87.892,87.802,7.10726843]
[1773156935965,9.02222588,87.891,87.802,7.10726843]
[1773156936176,10.239,87.88,87.829,10.245]
[1773156936366,19.13460669,87.88,87.802,7.10726843]
[1773156936871,8.89560669,87.88,87.828,10.245]
[1773156937561,8.89560669,87.88,87.814,10.247]
[1773156937964,8.89560669,87.88,87.801,7.10874617]
[1773156938568,8.89560669,87.88,87.836,10.244]
[1773156938768,10.238,87.895,87.821,7.13080317]
[1773156939076,8.89560669,87.93,87.864,7.13080317]
[1773156940071,9.02222588,87.929,87.864,7.13080317]
[1773156940274,9.02222588,87.928,87.864,7.13080317]
[1773156940476,10.235,87.921,87.865,10.241]
[1773156941678,10.235,87.921,87.83,8.89560669]
[1773156941679,10.235,87.914,87.857,10.242]
[1773156942177,10.236,87.909,87.857,10.242]
[1773156942677,8.89560669,87.89,87.819,7.08217791]
[1773156943371,10.239,87.882,87.834,10.245]
[1773156943571,10.239,87.882,87.819,7.08217791]
[1773156943772,10.239,87.882,87.834,10.244]
[1773156944083,8.89560669,87.89,87.819,7.08217791]
[1773156944376,8.89560669,87.89,87.848,10.243]
[1773156944776,8.89560669,87.89,87.837,7.08333911]
[1773156945275,8.89560669,87.91,87.837,7.08333911]
[1773156946778,8.89560669,87.91,87.854,10.242]
[1773156947579,8.89560669,87.91,87.844,10.243]
[1773156948380,9.02222588,87.909,87.844,10.243]
[1773156949085,9.02222588,87.908,87.844,10.243]
[1773156949382,8.89560669,87.89,87.837,7.08333911]
[1773156949574,9.02222588,87.889,87.837,7.08333911]
[1773156949777,8.89560669,87.91,87.837,7.08333911]
[1773156949977,10.238,87.894,87.846,10.243]
[1773156950177,9.02222588,87.893,87.846,10.243]
[1773156950375,10.238,87.894,87.846,10.243]
[1773156950580,8.87158571,87.893,87.846,10.243]
[1773156950777,8.87158571,87.892,87.847,7.09840835]
[1773156950978,10.236,87.904,87.847,7.09840835]
[1773156950979,8.87158571,87.891,87.847,7.09840835]
[1773156951178,8.87158571,87.89,87.847,7.09840835]
[1773156951378,8.87158571,87.889,87.847,7.09840835]
[1773156951684,8.87158571,87.888,87.849,10.243]
[1773156951879,8.87158571,87.887,87.849,10.243]
[1773156952088,8.87158571,87.886,87.849,10.243]
[1773156952381,8.87158571,87.885,87.857,10.242]
[1773156952581,8.87158571,87.884,87.857,10.242]
[1773156952777,8.89560669,87.91,87.857,10.242]
[1773156952778,8.87158571,87.883,87.857,10.242]
[1773156952978,8.87158571,87.882,87.857,10.242]
[1773156953179,8.87158571,87.909,87.857,10.242]
[1773156953483,8.89560669,87.91,87.865,10.241]
[1773156953484,8.87158571,87.908,87.865,10.241]
[1773156953680,8.89560669,87.91,87.865,10.241]
[1773156953681,8.87158571,87.907,87.865,10.241]
[1773156953882,8.87158571,87.906,87.847,7.09840835]
[1773156954083,0.00058571,87.905,87.847,7.09840835]
[1773156954281,8.89560669,87.94,87.84,20.488]
[1773156954282,8.89560669,87.94,87.851,7.09446167]
[1773156954586,8.89560669,87.94,87.896,10.237]
[1773156954975,10.231,87.95,87.896,10.237]
[1773156956787,10.232,87.941,87.89,7.09446167]
[1773156958988,10.25147386,88.002,87.904,7.08866919]
[1773156959284,8.89560669,87.98,87.904,7.08866919]
[1773156959682,10.229,87.965,87.91,10.236]
[1773156959882,8.89560669,87.98,87.904,7.08866919]
[1773156960094,10.233,87.936,87.879,10.239]
[1773156960288,10.233,87.936,87.872,7.09907914]
[1773156960289,8.89560669,87.94,87.872,7.09907914]
[1773156960478,8.89560669,87.94,87.797,159.433]
[1773156960479,8.89560669,87.92,87.851,7.09907914]
[1773156961086,10.236,87.912,87.852,10.242]
[1773156961582,8.89560669,87.96,87.84,10.244]
[1773156961583,8.89560669,87.9,87.84,10.244]
[1773156961780,8.89560669,87.9,87.828,7.09907914]
[1773156962384,10.238,87.893,87.83,10.245]
[1773156962887,8.89560669,87.9,87.828,7.09907914]
[1773156963284,20.46,87.962,87.818,20.493]
[1773156963285,8.89560669,87.92,87.831,7.09559026]
[1773156963682,8.89560669,87.92,87.858,7.09559026]
[1773156964381,8.89560669,87.92,87.831,7.14178161]
[1773156964587,8.89560669,87.9,87.831,7.14178161]
[1773156964790,8.89560669,87.92,87.831,7.14178161]
[1773156965186,8.89560669,87.92,87.83,8.89560669]
[1773156965187,8.89560669,87.92,87.858,7.14178161]
[1773156966085,8.78599044,87.919,87.858,7.14178161]
[1773156966284,8.78599044,87.918,87.874,10.24]
[1773156966486,8.89560669,87.92,87.874,10.24]
[1773156966487,8.78599044,87.917,87.874,10.24]
[1773156966687,8.89560669,87.92,87.858,7.14178161]
[1773156966688,8.78599044,87.916,87.858,7.14178161]
[1773156966882,8.89560669,87.92,87.8,10.30314153]
[1773156966883,8.78599044,87.915,87.838,7.1513271]
[1773156967189,8.89560669,87.9,87.819,7.1513271]
[1773156967387,8.78599044,87.899,87.844,7.1513271]
[1773156967588,8.78599044,87.898,87.844,7.1513271]
[1773156967890,8.89560669,87.9,87.844,7.1513271]
[1773156967891,8.78599044,87.897,87.844,7.1513271]
[1773156968091,8.78599044,87.899,87.844,7.1513271]
[1773156968291,10.235,87.92,87.844,7.1513271]
[1773156968292,8.78599044,87.919,87.844,7.1513271]
[1773156968491,19.13060669,87.92,87.844,7.1513271]
[1773156968492,8.78599044,87.918,87.844,7.1513271]
[1773156968681,8.78599044,87.917,87.856,10.242]
[1773156968992,8.78599044,87.916,87.844,7.1513271]
[1773156969193,8.78599044,87.915,87.844,7.1513271]
[1773156969392,8.78599044,87.914,87.844,7.1513271]
[1773156969586,8.78599044,87.913,87.846,10.243]
[1773156969786,8.89560669,87.9,87.846,10.243]
[1773156969989,8.78599044,87.899,87.846,7.11526915]
[1773156970188,8.78599044,87.898,87.846,7.11526915]
[1773156970491,8.78599044,87.897,87.846,7.11526915]
[1773156970792,8.78599044,87.896,87.846,7.11526915]
[1773156970990,8.78599044,87.895,87.846,7.11526915]
[1773156971187,8.78599044,87.894,87.846,17.35826915]
[1773156971389,8.78599044,87.893,87.846,7.11526915]
[1773156971693,8.89560669,87.92,87.846,7.11526915]
[1773156972487,8.89560669,87.92,87.875,10.24]
[1773156972683,8.89560669,87.92,87.866,7.11570396]
[1773156972889,8.89560669,87.96,87.914,10.235]
[1773156973087,8.89560669,87.96,87.904,7.11570396]
[1773156973695,8.89560669,87.96,87.905,10.236]
[1773156973882,8.89560669,87.96,87.904,7.11570396]
[1773156974393,8.89560669,87.96,87.871,7.14277995]
[1773156975392,8.89560669,87.96,87.895,10.237]
[1773156975393,10.232,87.945,87.895,10.237]
[1773156976889,8.86961703,87.96,87.89,7.14277995]
[1773156977789,283.79447347,87.97,87.89,7.14277995]
[1773156977790,283.79447347,87.97,87.906,10.236]
[1773156977993,292.6640905,87.97,87.906,10.236]
[1773156978292,292.6640905,87.97,87.89,7.14277995]
[1773156978490,10.232,87.946,87.897,10.237]
[1773156979288,8.86961703,87.95,87.851,7.14764323]
[1773156979491,8.86961703,87.93,87.851,7.14764323]
[1773156979682,8.86961703,87.95,87.868,7.14764323]
[1773156980587,283.79447347,87.97,87.895,7.14531861]
[1773156980793,292.6640905,87.97,87.895,7.14531861]
[1773156981492,10.231,87.949,87.895,7.14531861]
[1773156982290,10.232,87.941,87.895,7.14531861]
[1773156982890,8.86961703,87.95,87.877,7.14233232]
[1773156982891,10.233,87.934,87.877,7.14233232]
[1773156983697,8.66909462,87.933,87.877,7.14233232]
[1773156983897,8.66909462,87.932,87.877,7.14233232]
[1773156984094,8.66909462,87.931,87.877,7.14233232]
[1773156984292,8.66909462,87.93,87.877,7.14233232]
[1773156984497,8.66909462,87.929,87.877,7.14233232]
[1773156984697,8.66909462,87.928,87.877,7.14233232]
[1773156984898,8.66909462,87.927,87.877,7.14233232]
[1773156985097,8.66909462,87.926,87.877,7.14233232]
[1773156985293,8.86961703,87.95,87.86,7.14147485]
[1773156985294,8.66909462,87.925,87.86,7.14147485]
[1773156985500,8.66909462,87.924,87.86,7.14147485]
[1773156985695,10.235,87.921,87.866,10.241]
[1773156985896,8.66909462,87.92,87.867,7.14147485]
[1773156986096,8.66909462,87.919,87.867,7.14147485]
[1773156986304,8.66909462,87.918,87.831,7.14068922]
[1773156986594,8.66909462,87.917,87.831,7.14068922]
[1773156986799,8.86961703,87.91,87.831,7.14068922]
[1773156987001,8.66909462,87.909,87.831,7.14068922]
[1773156987199,8.66909462,87.908,87.831,7.14068922]
[1773156987501,8.66909462,87.907,87.841,10.244]
[1773156987804,10.238,87.892,87.848,10.243]
[1773156988006,8.66909462,87.891,87.848,10.243]
[1773156988301,8.66909462,87.89,87.831,7.14068922]
[1773156988501,8.66909462,87.889,87.831,7.14068922]
[1773156988704,8.66909462,87.888,87.831,7.14068922]
[1773156988998,8.66909462,87.887,87.831,7.14068922]
[1773156989198,8.66909462,87.886,87.831,7.14068922]
[1773156989405,8.66909462,87.885,87.84,10.244]
[1773156989592,8.66909462,87.884,87.84,10.244]
[1773156989796,8.66909462,87.883,87.84,10.244]
[1773156989996,8.66909462,87.882,87.84,10.244]
[1773156990203,8.66909462,87.881,87.84,10.244]
[1773156990394,8.66909462,87.88,87.84,10.244]
[1773156990598,8.66909462,87.879,87.84,10.244]
[1773156990898,8.66909462,87.878,87.847,10.243]
[1773156991102,8.66909462,87.877,87.847,10.243]
[1773156991298,8.66909462,87.876,87.847,10.243]
[1773156991503,8.66909462,87.875,87.847,10.243]
[1773156991698,8.66909462,87.874,87.847,10.243]
[1773156991902,8.66909462,87.873,87.847,10.243]
[1773156992102,8.66909462,87.872,87.847,10.243]
[1773156992401,10.238,87.894,87.847,10.243]
[1773156992596,8.67369439,87.893,87.85,7.1371166]
[1773156992799,8.67369439,87.892,87.85,7.1371166]
[1773156993100,8.67369439,87.891,87.85,7.1371166]
[1773156993300,8.67369439,87.89,87.85,7.1371166]
[1773156993496,8.86961703,87.91,87.85,7.1371166]
[1773156993497,8.67369439,87.889,87.85,7.1371166]
[1773156993697,8.67369439,87.889,87.8,22.68146304]
[1773156993698,8.86961703,87.91,87.859,7.1371166]
[1773156993898,11.3859709,87.92,87.859,7.1371166]
[1773156994302,11.3859709,87.92,87.873,10.24]
[1773156995107,8.86961703,87.92,87.873,10.24]
[1773156995705,2.52446679,87.937,87.88,10.239]
[1773156995906,2.52446679,87.929,87.875,4.05623615]
[1773156996509,2.60502046,87.92,87.843,4.05623615]
[1773156997408,2.60502046,87.909,87.853,10.242]
[1773156998106,10.238,87.891,87.843,4.05623615]
[1773156998301,2.60639399,87.889,87.826,4.05623615]
[1773156998708,2.60639399,87.884,87.834,10.245]
[1773156999208,8.86961703,87.89,87.826,4.05623615]
[1773156999411,2.60639399,87.905,87.826,4.05623615]
[1773156999618,8.86961703,87.89,87.826,4.05623615]
[1773157000006,2.60639399,87.905,87.826,4.05623615]
[1773157000609,10.237,87.895,87.842,10.244]
[1773157002010,2.59212257,87.884,87.808,4.05623615]
[1773157002509,2.59212257,87.884,87.795,20.499]
[1773157002510,10.239,87.879,87.833,10.245]
[1773157002714,8.86961703,87.89,87.825,4.05623615]
[1773157003112,10.238,87.889,87.84,10.244]
[1773157005515,8.86961703,87.89,87.825,4.05623615]
[1773157005516,10.237,87.897,87.847,10.243]
[1773157005716,2.59212257,87.903,87.825,4.05623615]
[1773157006314,10.239,87.882,87.83,10.245]
[1773157006812,2.60897898,87.887,87.83,10.245]
[1773157008323,10.24,87.876,87.83,10.245]
[1773157009425,2.60606595,87.869,87.823,10.246]
[1773157009628,2.60606595,87.859,87.791,3.85936945]
[1773157010728,10.243,87.847,87.791,14.10836945]
[1773157011422,2.60606595,87.859,87.791,3.85936945]
[1773157011423,10.242,87.855,87.791,3.85936945]
[1773157012125,2.60606595,87.859,87.798,10.249]
[1773157012624,10.245,87.834,87.791,3.85936945]
[1773157013123,2.57252837,87.834,87.761,3.85936945]
[1773157013318,10.245,87.827,87.781,10.251]
[1773157013519,8.86961703,87.84,87.761,3.85936945]
[1773157013520,2.57252837,87.826,87.761,3.85936945]
[1773157014320,10.245,87.83,87.774,3.85936945]
[1773157014623,11.35,87.877,87.774,3.85936945]
[1773157014624,2.56482275,87.859,87.774,3.85936945]
[1773157015016,2.56482275,87.859,87.792,3.85936945]
[1773157016324,10.244,87.842,87.793,10.249]
[1773157016831,10.244,87.842,87.793,14.10836945]
[1773157017032,10.243,87.85,87.8,10.248]
[1773157017425,2.56482275,87.859,87.793,3.85936945]
[1773157017623,10.244,87.843,87.794,10.249]
[1773157018330,2.56482275,87.859,87.801,10.248]
[1773157019425,10.243,87.844,87.801,10.248]
[1773157020832,10.243,87.844,87.793,14.10836945]
[1773157021426,10.243,87.852,87.8,10.249]
[1773157021628,2.56482275,87.859,87.801,3.85936945]
[1773157021829,3.31855015,87.86,87.811,3.85936945]
[1773157022030,3.31855015,87.85,87.795,3.85936945]
[1773157022429,3.31855015,87.85,87.806,10.248]
[1773157022632,2.55867273,87.859,87.776,20.503]
[1773157022633,2.55867273,87.859,87.807,3.85936945]
[1773157023335,13.56155015,87.85,87.809,10.247]
[1773157023727,2.55867273,87.859,87.814,10.247]
[1773157023933,3.31855015,87.87,87.811,3.85936945]
[1773157024136,3.31855015,87.87,87.751,13.81184601]
[1773157024137,3.31855015,87.89,87.831,3.85936945]
[1773157024334,21.18120478,87.944,87.782,159.461]
[1773157024335,2.55786108,87.929,87.861,3.85936945]
[1773157024535,3.31855015,87.93,87.871,3.85936945]
[1773157024839,3.31855015,87.93,87.88,3.31855015]
[1773157025133,3.31855015,87.92,87.874,3.85936945]
[1773157025330,5.87641123,87.93,87.874,3.85936945]
[1773157025532,2.55786108,87.95,87.891,3.85936945]
[1773157026130,10.231,87.949,87.894,10.237]
[1773157026335,2.53532228,87.968,87.895,3.85936945]
[1773157026535,2.53532228,87.968,87.913,10.235]
[1773157026744,2.53532228,87.968,87.895,3.85936945]
[1773157027139,2.53532228,87.987,87.915,3.85936945]
[1773157027336,2.53532228,88.006,87.93,8.86991741]
[1773157027841,2.53532228,88.006,87.945,10.232]
[1773157028232,2.53532228,88.006,87.91,8.86991741]
[1773157028539,2.53532228,88.006,87.93,8.86991741]
[1773157029637,2.53532228,88.006,87.91,8.86991741]
[1773157030039,14.10848674,88.073,87.91,8.86991741]
[1773157030040,13.50473392,88.027,87.94,8.86991741]
[1773157031544,13.50473392,88.027,87.967,10.229]
[1773157034143,13.46619848,88.049,87.96,8.86991741]
[1773157034444,13.46619848,88.049,87.93,159.192]
[1773157034445,13.46619848,88.049,87.98,8.86991741]
[1773157035448,13.46619848,88.069,87.999,10.225]
[1773157035837,13.46619848,88.055,87.976,10.228]
[1773157036138,13.47535833,88.049,87.94,8.84510624]
[1773157037146,13.47535833,88.049,87.929,5.0]
[1773157037147,13.47535833,88.049,87.96,8.84510624]
[1773157037543,13.47535833,88.049,87.981,10.227]
[1773157037748,13.47535833,88.049,87.96,8.84510624]
[1773157038246,13.47535833,88.049,87.926,159.199]
[1773157038247,13.47535833,88.049,87.98,8.84510624]
[1773157038442,13.47535833,88.049,87.931,20.467]
[1773157038650,13.47535833,88.049,87.96,8.84510624]
[1773157038942,13.48302062,88.047,87.96,8.84510624]
[1773157039346,13.48302062,88.044,87.96,8.84510624]
[1773157040343,13.48302062,88.044,87.976,10.228]
[1773157040545,13.48302062,88.044,87.96,8.84510624]